bitfinex-derivatives/quotes_ETHF0:USTF0_20250530
["timestamp","ask_amount","ask_price","bid_price","bid_amount"]
[1748568700287,1.2285,2609.5,2609.2,8.1908]
[1748568700487,1.2285,2609.5,2609.2,3.2078]
[1748568700683,1.2285,2609.5,2608.9,0.0057522]
[1748568700684,3.2078,2609.4,2608.9,0.0057522]
[1748568700888,3.2078,2609.0,2608.9,0.0057522]
[1748568701090,4.50630388,2609.0,2608.9,0.0057522]
[1748568701891,4.50635739,2609.0,2608.9,0.0057522]
[1748568703995,1.29855739,2609.0,2608.9,0.0057522]
[1748568704189,3.2078,2609.0,2608.9,0.0057522]
[1748568704387,4.76512367,2609.0,2608.9,0.0057522]
[1748568704585,4.50698836,2609.0,2608.9,0.0057522]
[1748568705798,4.50698886,2609.0,2608.9,0.0057522]
[1748568706803,4.76529063,2609.0,2608.9,0.0057522]
[1748568706992,4.50698886,2609.0,2608.9,0.0057522]
[1748568709396,1.29918886,2609.0,2608.9,0.0057522]
[1748568710293,3.2078,2609.3,2608.9,0.0057522]
[1748568712196,1.3306,2609.2,2608.9,0.0057522]
[1748568712501,1.29802236,2609.1,2608.9,0.0057522]
[1748568712698,2.1601,2609.0,2608.9,0.0057522]
[1748568716001,6.66596978,2609.0,2608.9,0.0057522]
[1748568716196,11.66596978,2609.0,2608.9,0.0057522]
[1748568716608,11.92349778,2609.0,2608.9,0.0057522]
[1748568716804,11.66596978,2609.0,2608.8,0.5147]
[1748568717007,7.01696978,2608.9,2608.2,0.8769]
[1748568717208,3.2078,2608.3,2607.2,8.1418]
[1748568717510,3.2078,2607.9,2607.2,8.1418]
[1748568717709,1.2852,2607.8,2607.3,1.2878]
[1748568717911,1.2909522,2607.8,2607.3,2.1706522]
[1748568718315,1.2909522,2607.8,2607.3,1.2935522]
[1748568718909,0.0057522,2607.8,2607.3,1.2935522]
[1748568720115,2.0318522,2607.8,2607.3,1.2935522]
[1748568720716,0.0057522,2607.8,2607.5,3.2078]
[1748568720914,0.0057522,2607.8,2607.6,1.2985]
[1748568721918,0.0057522,2607.8,2607.6,2.1037]
[1748568722322,0.0057522,2607.8,2607.7,1.2508]
[1748568722713,0.0057522,2607.8,2607.5,3.2078]
[1748568722913,1.2663522,2607.8,2607.4,1.2508]
[1748568723115,1.2663522,2607.8,2607.3,0.0057522]
[1748568723314,3.2078,2607.6,2607.3,0.0057522]
[1748568723521,1.9444,2607.5,2607.3,0.0057522]
[1748568723719,2.6128,2607.5,2607.3,0.0057522]
[1748568725420,0.6838,2607.5,2607.3,0.0057522]
[1748568726726,1.2429,2607.4,2607.3,0.0057522]
[1748568727917,6.2429,2607.4,2606.5,4.085]
[1748568728123,3.2078,2606.7,2606.5,0.8772]
[1748568728625,3.2078,2606.7,2606.3,1.2519]
[1748568729524,3.2078,2607.0,2606.3,1.2519]
[1748568729724,1.2241,2606.9,2606.3,1.2519]
[1748568729926,0.6804,2606.8,2606.3,1.2519]
[1748568731834,1.2668,2606.7,2606.3,1.2519]
[1748568732031,4.4746,2606.7,2606.3,1.2519]
[1748568732229,0.7,2606.6,2606.3,1.2519]
[1748568732729,1.9668,2606.6,2606.3,1.2519]
[1748568732931,1.9668,2606.6,2606.2,0.0057522]
[1748568734226,3.2078,2606.3,2606.2,0.0057522]
[1748568734432,1.9668,2606.6,2606.2,0.0057522]
[1748568734944,3.2078,2606.7,2606.2,0.0057522]
[1748568736329,1.9755,2606.6,2606.2,0.0057522]
[1748568739250,3.2078,2605.9,2603.4,3.2078]
[1748568739447,39.96008382,2606.5,2603.5,0.6936]
[1748568739448,3.2078,2604.6,2603.5,0.6936]
[1748568739661,3.2078,2604.3,2603.5,0.6936]
[1748568739947,3.2078,2603.7,2603.5,0.51705557]
[1748568740139,3.2078,2603.7,2603.3,0.0057522]
[1748568740446,1.3255,2603.6,2603.3,0.0057522]
[1748568740737,3.2078,2603.4,2603.3,0.0057522]
[1748568744251,3.2078,2604.5,2603.3,5.0057522]
[1748568744436,3.2078,2604.5,2603.7,3.2078]
[1748568744739,3.2078,2604.5,2604.0,3.2078]
[1748568744942,3.2078,2604.5,2604.1,1.2691]
[1748568745340,3.2078,2604.2,2603.7,4.894]
[1748568745538,1.3425,2604.1,2603.7,4.894]
[1748568746438,3.2078,2603.9,2603.3,0.0057522]
[1748568746738,3.2078,2603.6,2603.3,0.0057522]
[1748568746947,1.2322,2603.5,2603.3,0.0057522]
[1748568748541,0.192,2603.4,2603.3,0.0057522]
[1748568750939,0.192,2603.4,2603.3,1.2790522]
[1748568752239,0.192,2603.4,2603.3,0.0057522]
[1748568752748,0.192,2603.4,2603.3,6.2790522]
[1748568753548,1.2234,2604.1,2603.3,6.2790522]
[1748568753843,3.2078,2604.7,2604.0,3.2078]
[1748568754040,4.4312,2604.7,2604.1,1.3293]
[1748568754244,1.2291522,2604.6,2604.1,1.3293]
[1748568755039,1.2291522,2604.6,2604.0,3.2078]
[1748568755446,1.2291522,2604.6,2604.0,4.5371]
[1748568756146,1.2291522,2604.6,2604.0,3.2078]
[1748568756356,0.1919,2604.5,2604.0,3.2078]
[1748568756645,0.1919,2604.5,2604.1,1.2998]
[1748568756845,0.1919,2604.5,2604.3,3.2078]
[1748568757045,0.1919,2604.5,2604.4,6.1958]
[1748568757455,0.1919,2604.5,2604.4,11.1958]
[1748568758651,0.1919,2604.5,2604.4,6.2998]
[1748568758851,0.1919,2604.5,2604.4,6.1958]
[1748568762161,0.1919,2604.5,2604.1,4.895]
[1748568762454,1.2242,2604.4,2604.1,4.895]
[1748568762652,1.2242,2604.4,2604.1,6.2338]
[1748568763064,1.2242,2604.4,2604.1,4.895]
[1748568763447,1.2843008,2604.3,2604.1,4.895]
[1748568763649,1.2242,2604.4,2604.1,4.895]
[1748568763852,0.1919,2604.5,2604.1,4.895]
[1748568764059,0.1919,2604.5,2604.2,1.3388]
[1748568764256,1.4161,2604.5,2604.2,1.3388]
[1748568764463,0.1919,2604.5,2604.3,3.2078]
[1748568764653,0.1919,2604.5,2604.4,1.3388]
[1748568764955,0.1919,2604.5,2604.3,3.2078]
[1748568765155,0.1919,2604.5,2604.4,1.2952]
[1748568765959,0.1919,2604.5,2604.1,4.895]
[1748568766259,3.2078,2604.2,2603.3,0.0057522]
[1748568766467,3.2078,2603.9,2603.3,0.0057522]
[1748568766652,1.2511,2603.8,2603.3,0.0057522]
[1748568766955,1.286867,2603.7,2603.3,0.0057522]
[1748568767155,2.537967,2603.6,2603.3,0.0057522]
[1748568767354,1.286867,2603.5,2603.3,0.0057522]
[1748568767555,1.2511,2603.4,2603.3,0.0057522]
[1748568767862,2.53969192,2603.4,2603.3,0.0057522]
[1748568769062,7.53969192,2603.4,2602.7,8.0678]
[1748568769260,5.15949192,2603.3,2602.7,8.0678]
[1748568769461,3.22339192,2603.2,2602.7,8.0678]
[1748568769651,1.28859192,2603.1,2602.7,8.0678]
[1748568770067,1.28859192,2603.0,2602.7,8.0678]
[1748568770262,1.28859192,2602.9,2602.6,0.0057522]
[1748568770562,1.3196,2602.8,2602.7,8.0688]
[1748568770860,1.3196,2602.8,2602.7,4.861]
[1748568771255,0.0057522,2603.2,2602.7,8.0688]
[1748568771451,2.51763263,2603.1,2602.7,8.0688]
[1748568771654,1.28913263,2603.0,2602.7,3.2078]
[1748568771857,2.51735133,2602.9,2602.7,3.2078]
[1748568772057,1.2285,2602.9,2602.7,3.2078]
[1748568772463,1.28853218,2602.8,2602.7,3.2078]
[1748568773253,1.2285,2602.9,2602.6,0.0057522]
[1748568773459,1.2285,2602.7,2602.6,0.0057522]
[1748568773657,2.51669638,2602.7,2602.6,0.0057522]
[1748568774563,5.72449638,2602.7,2602.6,0.0057522]
[1748568774964,2.51669638,2602.7,2602.6,0.0057522]
[1748568775261,1.2285,2602.7,2602.6,0.0057522]
[1748568778166,2.51452959,2602.7,2602.6,0.0057522]
[1748568778467,1.2285,2602.7,2602.6,0.0057522]
[1748568778969,0.0057522,2603.2,2602.6,3.2135522]
[1748568779265,1.28615316,2603.1,2602.7,1.2805]
[1748568779466,0.0057522,2603.2,2602.8,4.862]
[1748568779667,1.28607562,2603.1,2602.9,1.2805]
[1748568779966,1.273,2603.1,2602.8,4.862]
[1748568780371,1.273,2603.1,2602.6,3.2135522]
[1748568780567,1.273,2603.1,2602.6,8.0755522]
[1748568781065,1.273,2603.1,2602.6,3.2135522]
[1748568781968,1.273,2603.1,2602.6,8.0765522]
[1748568782272,3.2078,2603.0,2602.6,3.2135522]
[1748568782463,2.5179067,2602.9,2602.6,3.2135522]
[1748568782657,1.2325,2602.9,2602.6,3.2135522]
[1748568783265,1.2325,2602.9,2602.6,0.0057522]
[1748568783866,0.615,2602.8,2602.6,0.0057522]
[1748568784065,1.2532,2602.7,2602.6,0.0057522]
[1748568784475,4.461,2602.7,2602.6,0.0057522]
[1748568784664,5.74534349,2602.7,2602.6,0.0057522]
[1748568784868,4.461,2602.7,2602.6,0.0057522]
[1748568785571,4.461,2602.7,2601.9,3.2078]
[1748568785764,4.461,2602.7,2601.9,8.0708]
[1748568785964,4.461,2602.7,2602.0,1.233]
[1748568786573,4.461,2602.7,2602.1,0.00576336]
[1748568787167,0.1921,2602.6,2602.1,0.00576336]
[1748568787372,1.26,2602.5,2602.1,0.00576336]
[1748568787566,1.26,2602.5,2602.1,4.86876336]
[1748568789078,3.2078,2602.4,2602.1,0.00576336]
[1748568789269,1.26,2602.3,2602.1,0.00576336]
[1748568791371,6.26,2602.3,2601.6,3.2078]
[1748568791579,3.2078,2601.8,2601.3,3.2078]
[1748568791773,1.2778,2601.7,2601.3,3.2078]
[1748568791976,0.6721,2601.6,2601.3,3.2078]
[1748568792172,1.2778,2601.5,2601.3,3.2078]
[1748568792677,1.2778,2601.5,2601.1,3.21356336]
[1748568792879,1.2778,2601.5,2601.1,0.00576336]
[1748568793074,4.4856,2601.5,2601.1,0.00576336]
[1748568796613,1.28633636,2601.4,2601.1,0.00576336]
[1748568796779,1.2241,2601.3,2601.1,0.00576336]
[1748568797375,3.2078,2601.2,2601.1,0.00576336]
[1748568797872,1.2241,2601.3,2601.1,3.21356336]
[1748568798077,5.7459,2601.6,2601.1,3.21356336]
[1748568798281,2.5381,2601.6,2601.2,3.2078]
[1748568798574,2.5381,2601.6,2601.2,1.3275]
[1748568798776,3.2078,2601.3,2600.2,3.8603]
[1748568798983,3.2078,2600.8,2600.2,8.6923]
[1748568799170,1.2226,2600.7,2600.2,8.6923]
[1748568799375,1.2226,2600.7,2600.2,8.0398]
[1748568799575,2.522,2600.7,2600.2,8.0398]
[1748568799777,2.522,2600.7,2600.2,8.04364965]
[1748568799986,3.2078,2600.3,2599.4,4.832]
[1748568800188,3.2078,2600.0,2599.5,0.07693787]
[1748568800380,1.2226,2599.9,2599.5,0.07693787]
[1748568801091,1.2226,2599.9,2599.6,4.833]
[1748568801283,1.2226,2599.9,2599.7,0.07693195]
[1748568801478,3.21356336,2600.0,2599.7,0.07693195]
[1748568802381,3.21356336,2600.0,2599.8,4.833]
[1748568803087,3.21356336,2600.0,2599.9,1.2452]
[1748568803590,3.21356336,2600.0,2599.8,4.833]
[1748568804088,3.21356336,2600.0,2599.9,6.0792]
[1748568804481,3.21356336,2600.0,2599.9,11.0792]
[1748568805086,0.00576336,2600.0,2599.9,11.0792]
[1748568805284,3.2078,2600.6,2599.9,17.3096]
[1748568805588,3.2078,2600.6,2600.2,3.2078]
[1748568805788,3.2078,2600.6,2600.3,1.2463]
[1748568805985,3.2078,2600.9,2600.4,4.834]
[1748568806185,1.3198,2600.5,2600.4,4.83976336]
[1748568806404,1.3198,2600.5,2600.4,0.00576336]
[1748568812904,0.00576336,2600.9,2600.4,5.00576336]
[1748568813105,0.00576336,2600.9,2600.8,3.2078]
[1748568813395,0.19796336,2600.9,2600.8,4.835]
[1748568816196,1.47834628,2600.9,2600.8,4.835]
[1748568817698,1.47834628,2600.9,2600.6,3.2078]
[1748568817908,1.3454,2600.8,2600.7,4.835]
[1748568819409,2.62924802,2600.8,2600.7,4.835]
[1748568819607,1.3454,2600.8,2600.7,4.835]
[1748568820311,2.62915558,2600.8,2600.7,4.835]
[1748568820507,2.62915558,2600.8,2600.4,0.65086336]
[1748568820706,1.3454,2600.8,2600.4,0.65086336]
[1748568821007,1.3454,2600.8,2600.5,4.834]
[1748568821313,1.28585347,2600.7,2600.5,4.834]
[1748568821507,1.2774,2600.6,2600.5,4.834]
[1748568822507,1.2774,2600.6,2600.4,0.00576336]
[1748568822811,1.2774,2600.6,2600.5,4.834]
[1748568823713,0.19796336,2600.9,2600.5,4.834]
[1748568823913,1.53946871,2600.8,2600.6,3.2078]
[1748568824216,0.19796336,2600.9,2600.6,3.2078]
[1748568824417,2.50595146,2600.8,2600.6,3.2078]
[1748568824711,1.2213,2600.8,2600.7,4.835]
[1748568824906,4.07007509,2600.8,2600.7,4.835]
[1748568825307,3.81445216,2600.8,2600.7,4.835]
[1748568826004,3.81445216,2600.8,2600.4,0.00576336]
[1748568826211,5.7374,2600.8,2600.5,4.835]
[1748568826724,1.28550289,2600.7,2600.5,4.835]
[1748568826910,1.2274,2600.6,2600.5,4.835]
[1748568827615,1.2274,2600.6,2600.4,0.00576336]
[1748568827811,3.2078,2600.5,2600.4,0.00576336]
[1748568828206,4.49370147,2600.5,2600.4,0.00576336]
[1748568828720,3.2078,2600.5,2600.4,0.00576336]
[1748568829920,1.2274,2600.6,2600.4,0.00576336]
[1748568831314,1.2274,2600.6,2600.4,3.21356336]
[1748568832215,1.3083,2600.8,2600.4,3.21356336]
[1748568832420,1.2606,2600.7,2600.4,0.00576336]
[1748568833513,1.2606,2600.7,2600.4,3.21356336]
[1748568833710,1.2606,2600.7,2600.5,4.806]
[1748568835415,0.19796336,2600.9,2600.5,4.806]
[1748568835613,1.24676594,2600.6,2600.5,4.806]
[1748568837422,1.2506,2600.8,2600.5,4.806]
[1748568837618,0.19796336,2600.9,2600.5,6.0516]
[1748568837816,0.17796336,2600.9,2600.5,6.0516]
[1748568838116,0.17796336,2600.9,2600.4,3.21356336]
[1748568838318,2.53865487,2600.8,2600.4,0.00576336]
[1748568838520,3.2078,2600.5,2600.4,0.00576336]
[1748568838919,4.49337986,2600.5,2600.4,0.00576336]
[1748568839917,4.49309002,2600.5,2600.4,0.00576336]
[1748568842128,3.2078,2600.5,2600.4,0.00576336]
[1748568842526,1.22906336,2600.7,2600.4,0.00576336]
[1748568843623,1.22906336,2600.7,2600.5,4.806]
[1748568843826,1.22906336,2600.7,2600.4,0.00576336]
[1748568844018,1.22906336,2600.7,2600.5,4.806]
[1748568844722,1.22906336,2600.7,2600.4,0.00576336]
[1748568844925,4.43686336,2600.7,2600.4,4.81176336]
[1748568845129,4.43686336,2600.7,2600.4,0.00576336]
[1748568845333,1.28614265,2600.6,2599.8,4.806]
[1748568845629,3.2078,2600.1,2599.8,4.806]
[1748568845817,2.6294,2600.0,2599.8,4.806]
[1748568846118,3.9146266,2600.0,2599.4,3.2078]
[1748568846316,3.9146266,2600.0,2599.7,0.00576336]
[1748568846518,8.9146266,2600.0,2599.7,0.00576336]
[1748568846723,3.9146266,2600.0,2599.7,0.00576336]
[1748568847121,3.91333057,2600.0,2599.7,0.00576336]
[1748568851139,2.6294,2600.0,2599.7,0.00576336]
[1748568854933,3.4001,2600.1,2599.7,1.26636336]
[1748568855243,0.1923,2600.1,2599.7,1.89426336]
[1748568859435,1.2825,2600.0,2599.9,7.7986]
[1748568859642,1.9098,2600.0,2599.9,7.7986]
[1748568860149,1.9098,2600.0,2599.9,3.0226]
[1748568860643,3.19192609,2600.0,2599.9,3.0226]
[1748568861152,12.96792609,2600.0,2598.4,3.2078]
[1748568861452,3.2078,2598.9,2598.5,4.776]
[1748568861638,1.95112609,2599.9,2598.0,0.4747]
[1748568861639,3.2078,2598.6,2598.0,0.4747]
[1748568861840,3.2078,2598.3,2597.9,43.553]
[1748568862159,3.2078,2598.0,2597.8,4.776]
[1748568862442,1.3005,2597.9,2597.2,5.3944]
[1748568862748,3.2078,2597.5,2597.2,5.3944]
[1748568862936,1.2254,2597.4,2597.2,5.3944]
[1748568863136,3.2078,2597.8,2597.2,13.6022]
[1748568863346,5.0858,2598.3,2597.3,1.2323]
[1748568863648,1.878,2598.3,2597.5,3.2078]
[1748568863854,1.878,2598.3,2597.6,1.2323]
[1748568864042,1.2254,2598.3,2597.7,4.777]
[1748568864348,0.00576336,2598.4,2597.9,3.2078]
[1748568864541,0.00576336,2598.4,2598.3,3.2078]
[1748568864742,1.2254,2599.1,2598.3,7.9848]
[1748568864944,0.1924,2598.5,2598.4,4.4401]
[1748568865444,0.1924,2598.5,2598.4,9.4401]
[1748568866743,0.1924,2598.5,2598.4,9.2171]
[1748568867051,0.1924,2598.5,2598.4,4.4401]
[1748568867255,0.1924,2598.5,2598.4,4.777]
[1748568867546,0.1924,2598.5,2598.1,40.0211]
[1748568867747,0.1924,2598.5,2598.2,4.777]
[1748568868250,0.1924,2598.5,2598.3,1.2341]
[1748568869750,0.1924,2598.5,2598.3,6.2341]
[1748568869951,0.00577456,2598.7,2598.4,3.2078]
[1748568870255,0.00577456,2598.7,2598.5,1.2626]
[1748568871047,0.00577456,2598.7,2598.5,6.2626]
[1748568871550,0.00577456,2598.7,2598.5,6.7379]
[1748568871850,0.19817456,2598.7,2598.5,6.7379]
[1748568872351,0.19817456,2598.7,2598.5,1.7379]
[1748568872849,0.19817456,2598.7,2598.5,6.7379]
[1748568873044,3.2078,2599.1,2598.5,6.7379]
[1748568873243,3.2078,2599.1,2598.5,1.7379]
[1748568873454,3.2078,2599.6,2598.8,3.2078]
[1748568873644,3.2078,2599.6,2598.9,6.709]
[1748568873851,3.2078,2600.0,2599.2,3.2078]
[1748568874046,3.2078,2599.7,2599.3,1.26777456]
[1748568874353,1.32887456,2599.9,2599.4,4.777]
[1748568874546,1.32887456,2599.9,2599.5,1.262]
[1748568874744,1.32887456,2599.9,2599.5,4.4698]
[1748568875144,0.1923,2599.8,2599.5,4.4698]
[1748568875959,0.1923,2599.8,2599.5,3.2078]
[1748568876251,4.504,2599.7,2599.3,0.00577456]
[1748568876448,3.2078,2599.4,2599.3,0.00577456]
[1748568878355,8.2078,2599.4,2598.5,3.2078]
[1748568878554,3.2078,2598.8,2598.6,4.777]
[1748568878756,1.3136,2598.7,2598.5,4.777]
[1748568879844,1.3136,2598.7,2598.3,0.00577456]
[1748568880054,0.6525,2598.6,2598.3,4.78277456]
[1748568880251,1.3136,2598.5,2598.3,4.78277456]
[1748568880756,4.5214,2598.5,2598.3,4.78277456]
[1748568881549,1.3136,2598.5,2598.3,4.78277456]
[1748568882551,3.2078,2598.8,2598.3,4.78277456]
[1748568883049,1.3287,2598.7,2598.3,6.04467456]
[1748568888360,3.2078,2599.4,2598.6,3.2078]
[1748568888554,3.2078,2599.1,2598.7,4.778]
[1748568888752,1.3502,2599.0,2598.7,4.778]
[1748568888953,2.0005,2599.0,2598.7,4.778]
[1748568889456,2.0005,2599.0,2598.4,0.629]
[1748568889657,2.0005,2599.0,2598.5,4.746]
[1748568891360,0.1923,2598.9,2598.5,4.746]
[1748568891558,1.9383,2598.8,2598.5,4.746]
[1748568892058,1.9383,2598.8,2598.6,4.745]
[1748568893058,0.1923,2598.9,2598.6,4.745]
[1748568893366,1.3377,2598.7,2598.6,4.745]
[1748568896261,0.1923,2598.9,2598.6,4.745]
[1748568896457,0.1923,2598.9,2598.6,7.9528]
[1748568896658,0.1923,2598.9,2598.5,0.6172]
[1748568896859,1.2529,2598.8,2598.3,3.21357456]
[1748568897066,1.2529,2598.8,2598.6,4.746]
[1748568897966,1.2529,2598.8,2598.3,3.21357456]
[1748568898168,1.2529,2598.8,2598.4,4.746]
[1748568898369,4.50021227,2598.7,2598.4,4.746]
[1748568898573,1.2529,2598.6,2598.4,4.746]
[1748568898762,1.865,2598.6,2598.4,4.746]
[1748568899767,1.2529,2598.6,2598.4,4.746]
[1748568900263,4.0411,2598.9,2598.4,4.746]
[1748568900562,0.1923,2598.9,2598.5,3.2078]
[1748568900770,0.1923,2598.9,2598.4,4.746]
[1748568900771,1.3213,2598.8,2598.4,4.746]
[1748568901669,3.2078,2598.7,2598.4,4.746]
[1748568901869,1.3213,2598.6,2598.4,4.746]
[1748568902465,1.3213,2598.6,2598.3,0.00577456]
[1748568902674,0.6397,2598.5,2598.3,0.00577456]
[1748568902869,1.3362,2598.4,2598.3,0.00577456]
[1748568903676,4.544,2598.4,2598.3,0.00577456]
[1748568903869,4.544,2598.4,2598.3,4.75177456]
[1748568904575,4.7364,2598.4,2598.3,4.75177456]
[1748568906372,4.7364,2598.4,2598.3,0.00577456]
[1748568907069,11.0262422,2598.4,2598.3,0.00577456]
[1748568907269,11.0262422,2598.4,2598.0,4.746]
[1748568907579,3.2078,2598.1,2598.0,4.746]
[1748568907877,0.6423,2598.3,2598.0,4.746]
[1748568908070,1.3488,2598.2,2598.0,4.746]
[1748568908271,0.19817456,2598.4,2598.0,4.746]
[1748568908575,0.19817456,2598.4,2598.1,1.261]
[1748568908870,1.54697456,2598.4,2598.1,1.261]
[1748568909469,1.54697456,2598.4,2598.2,3.2078]
[1748568909674,0.19817456,2598.4,2598.2,3.2078]
[1748568909879,0.19817456,2598.4,2598.3,1.261]
[1748568911370,0.19817456,2598.4,2598.2,3.2078]
[1748568911576,0.19817456,2598.4,2598.3,4.746]
[1748568913275,0.19817456,2598.4,2598.2,4.746]
[1748568913577,3.2078,2598.3,2597.6,4.746]
[1748568913778,3.2078,2597.9,2597.6,4.746]
[1748568913969,1.2996,2597.8,2597.6,4.746]
[1748568915494,3.2078,2597.9,2597.6,4.746]
[1748568915996,3.2078,2597.9,2597.2,4.4698]
[1748568916194,3.2078,2597.9,2597.3,4.746]
[1748568916791,3.2078,2597.9,2597.4,1.262]
[1748568917198,3.2078,2597.9,2597.3,4.746]
[1748568917410,3.2078,2597.9,2597.2,3.2078]
[1748568917706,3.2078,2597.9,2597.2,4.747]
[1748568918207,3.2078,2597.9,2597.8,0.00643898]
[1748568918698,8.2078,2597.9,2597.8,0.00643898]
[1748568919499,8.4002,2597.9,2597.8,0.00643898]
[1748568920386,3.4002,2597.9,2597.8,0.00643898]
[1748568921180,3.4002,2597.9,2597.8,4.72343898]
[1748568921386,3.4002,2597.9,2597.8,0.00643898]
[1748568922083,8.4002,2597.9,2597.8,0.00643898]
[1748568923881,3.4002,2597.9,2597.8,0.00643898]
[1748568925580,0.1924,2597.9,2597.8,0.00643898]
[1748568925783,0.1924,2597.9,2597.8,5.00643898]
[1748568925984,3.2078,2598.2,2597.8,5.00643898]
[1748568926180,3.2078,2598.2,2597.9,1.2596]
[1748568926376,3.2078,2598.2,2598.0,4.717]
[1748568926578,3.2078,2598.2,2598.1,1.2618]
[1748568926880,0.00577456,2598.4,2598.1,1.2618]
[1748568927571,0.1922,2598.3,2598.1,1.2618]
[1748568928284,0.00577456,2598.4,2598.1,6.2618]
[1748568928484,3.2078,2599.1,2598.2,3.8417]
[1748568928683,3.2078,2598.7,2598.2,1.8957]
[1748568928879,3.2078,2599.1,2598.3,1.2618]
[1748568929479,1.3202,2598.9,2598.3,1.2618]
[1748568929784,1.32597456,2598.9,2598.4,0.00577456]
[1748568930088,0.00577456,2598.9,2598.5,4.717]
[1748568930272,0.00577456,2598.9,2598.6,1.2552]
[1748568930672,0.00577456,2598.9,2598.5,4.717]
[1748568930872,1.32597456,2598.9,2598.5,4.717]
[1748568932786,3.2078,2598.8,2598.5,4.717]
[1748568932983,1.3242,2598.7,2598.5,4.717]
[1748568934387,1.3242,2598.7,2598.4,0.00577456]
[1748568934579,1.3242,2598.7,2598.5,4.716]
[1748568936588,1.3242,2598.7,2598.6,4.716]
[1748568937277,0.00577456,2598.9,2598.6,4.716]
[1748568937684,1.32787456,2598.9,2598.6,4.716]
[1748568938984,1.32787456,2598.9,2598.6,5.65128034]
[1748568939183,0.00577456,2598.9,2598.7,1.261]
[1748568939486,0.00577456,2598.9,2598.8,3.2078]
[1748568939683,6.21836431,2599.4,2598.8,3.8569]
[1748568939885,6.21836431,2599.4,2598.9,1.261]
[1748568940593,6.22413887,2599.4,2598.9,1.261]
[1748568941691,3.01633887,2599.4,2598.9,1.261]
[1748568941988,3.01633887,2599.4,2599.1,3.2078]
[1748568942195,3.74555616,2599.9,2599.2,5.9509]
[1748568942395,3.74555616,2599.9,2599.5,3.2078]
[1748568942688,1.3159,2599.8,2599.5,3.2078]
[1748568943490,3.75133072,2599.9,2599.5,3.2078]
[1748568943690,3.75133072,2599.9,2599.6,1.851]
[1748568943891,3.75133072,2599.9,2599.7,5.9509]
[1748568944587,3.75133072,2599.9,2599.8,1.2349]
[1748568945586,3.75133072,2599.9,2599.2,0.4803]
[1748568945797,3.75133072,2599.9,2599.3,4.715]
[1748568945988,3.75133072,2599.9,2599.4,3.8368]
[1748568946292,3.75133072,2599.9,2599.5,1.2599]
[1748568947387,3.75133072,2599.9,2599.7,3.2078]
[1748568947587,3.75133072,2599.9,2599.8,5.9739]
[1748568947784,3.75133072,2599.9,2599.7,3.2078]
[1748568947988,3.75133072,2599.9,2599.8,4.714]
[1748568948998,3.75133072,2599.9,2599.4,3.8368]
[1748568949294,3.75133072,2599.9,2599.5,4.714]
[1748568949792,3.75133072,2599.9,2599.6,1.2599]
[1748568950890,0.00577456,2599.9,2599.7,3.2078]
[1748568951091,3.2078,2600.3,2599.8,1.26]
[1748568951421,3.2078,2600.3,2599.8,1.7401]
[1748568951898,3.2078,2600.6,2599.8,1.7401]
[1748568952092,0.00577456,2600.3,2599.8,1.74587456]
[1748568952589,0.00577456,2600.3,2600.0,3.2078]
[1748568952795,0.00577456,2600.3,2600.1,4.685]
[1748568953495,7.49111232,2601.1,2600.1,9.685]
[1748568953693,7.49111232,2601.1,2600.9,3.2078]
[1748568953895,7.49111232,2601.1,2601.0,4.684]
[1748568954091,7.49111232,2601.1,2601.0,6.8794663]
[1748568954285,7.49111232,2601.1,2601.0,11.8794663]
[1748568954514,4.52649438,2601.1,2601.0,11.8794663]
[1748568954798,4.52649438,2601.1,2601.0,6.8794663]
[1748568955093,4.52649438,2601.1,2601.0,10.6194663]
[1748568955498,4.52649438,2601.1,2601.0,5.6194663]
[1748568955702,4.52649438,2601.1,2600.9,3.2078]
[1748568956002,4.52649438,2601.1,2601.0,4.684]
[1748568956400,4.52649438,2601.1,2600.1,3.2078]
[1748568956601,3.2078,2600.9,2600.2,4.684]
[1748568956795,3.2078,2600.9,2600.4,3.2078]
[1748568957398,3.2078,2600.9,2600.4,4.15481411]
[1748568957701,3.2078,2600.9,2600.4,0.94701411]
[1748568957999,3.2078,2600.9,2600.2,4.684]
[1748568958201,3.2078,2600.9,2600.3,4.684]
[1748568958393,3.2078,2600.9,2600.4,4.684]
[1748568959704,1.2594,2600.8,2600.4,4.684]
[1748568960106,1.2594,2600.8,2600.4,7.8918]
[1748568961704,1.2594,2600.8,2600.4,3.2078]
[1748568961905,1.2594,2600.8,2600.5,4.683]
[1748568962103,1.2594,2600.8,2600.1,4.16433176]
[1748568962308,1.2594,2600.8,2600.2,4.683]
[1748568962503,3.2078,2600.6,2600.2,4.683]
[1748568962703,1.911,2600.5,2600.2,4.683]
[1748568963201,0.6503,2600.4,2600.2,4.683]
[1748568963407,4.4987,2600.3,2600.2,4.683]
[1748568963806,9.4987,2600.3,2600.0,4.683]
[1748568964005,4.4987,2600.3,2600.0,4.683]
[1748568964914,1.2909,2600.3,2600.0,4.683]
[1748568965211,1.2909,2600.3,2600.1,4.683]
[1748568965399,1.2909,2600.3,2599.8,0.00577456]
[1748568965597,1.2909,2600.3,2600.0,4.683]
[1748568966917,3.2078,2600.6,2600.0,4.683]
[1748568967112,4.52649438,2601.1,2600.1,4.55]
[1748568967113,5.1631,2601.0,2600.1,4.55]
[1748568967311,5.1631,2601.0,2600.4,3.2078]
[1748568967514,5.1631,2601.0,2600.5,4.683]
[1748568969518,1.9553,2601.0,2600.5,4.683]
[1748568969715,4.52649438,2601.1,2600.7,3.2078]
[1748568970016,4.52649438,2601.1,2601.0,3.2078]
[1748568970312,2.38769438,2601.1,2601.0,7.8908]
[1748568970612,1.2447,2601.7,2601.0,12.8908]
[1748568970813,1.2447,2601.7,2601.1,1.3009]